fUST/lending_fUST_20250727
["ID","MTS","AMOUNT","RATE_DAILY","PERIOD"]
[375282838,1753615871964,-1630.4,0.00021369,2]
[375282839,1753615871973,-151.0,0.00021369,2]
[375282840,1753615871983,-772.54,0.00021369,2]
[375282841,1753615871992,-401.09418904,0.00021369,2]
[375282842,1753615872002,-460.0,0.00021369,2]
[375282843,1753615872012,-565.5,0.00021369,2]
[375282844,1753615872021,-460.0,0.00021369,2]
[375282845,1753615872031,-460.0,0.00021369,2]
[375282846,1753615872042,-460.0,0.00021369,2]
[375282847,1753615872051,-460.0,0.00021369,2]
[375282848,1753615872060,-466.14,0.00021369,2]
[375282849,1753615872070,-554.36,0.00021369,2]
[375282850,1753615872080,-460.0,0.00021369,2]
[375282851,1753615872089,-460.0,0.00021369,2]
[375282852,1753615872099,-939.82,0.00021369,2]
[375282853,1753615872108,-2047.96,0.00021369,2]
[375282854,1753615872118,-1111.37,0.00021369,2]
[375282855,1753615872127,-601.19,0.00021369,2]
[375282856,1753615872136,-1411.8,0.00021369,2]
[375282857,1753615872146,-460.0,0.00021369,2]
[375282858,1753615872155,-460.0,0.00021369,2]
[375282859,1753615872164,-460.0,0.00021369,2]
[375282860,1753615872174,-460.0,0.00021369,2]
[375282861,1753615872183,-460.0,0.00021369,2]
[375282862,1753615872193,-734.55,0.00021369,2]
[375282863,1753615872202,-817.55,0.00021369,2]
[375282864,1753615872211,-460.0,0.00021369,2]
[375282865,1753615872221,-1243.43,0.00021369,2]
[375282866,1753615872230,-460.0,0.00021369,2]
[375282867,1753615872239,-460.0,0.00021369,2]
[375282868,1753615872249,-460.0,0.00021369,2]
[375282869,1753615872258,-460.0,0.00021369,2]
[375282870,1753615872267,-460.0,0.00021369,2]
[375282871,1753615872276,-178.419688,0.00021369,2]
[375282872,1753615872285,-460.0,0.00021369,2]
[375282873,1753615872295,-460.0,0.00021369,2]
[375282874,1753615872305,-178.419688,0.00021369,2]
[375282875,1753615872314,-460.0,0.00021369,2]
[375282876,1753615872323,-460.0,0.00021369,2]
[375282877,1753615872333,-4262.34,0.00021369,2]
[375282878,1753615872343,-3803.86,0.00021369,2]
[375282879,1753615872352,-471.21,0.00021369,2]
[375282880,1753615872361,-492.93,0.00021369,2]
[375282881,1753615872371,-1381.0,0.00021369,2]
[375282882,1753615872381,-1164.21,0.00021369,2]
[375282883,1753615872390,-460.0,0.00021369,2]
[375282884,1753615872399,-460.0,0.00021369,2]
[375282885,1753615872409,-460.0,0.00021369,2]
[375282886,1753615872417,-635.9,0.00021369,2]
[375282887,1753615872427,-1473.58,0.00021369,2]
[375282888,1753615872436,-460.0,0.00021369,2]
[375282889,1753615872445,-460.0,0.00021369,2]
[375282890,1753615872454,-460.0,0.00021369,2]
[375282891,1753615872463,-460.0,0.00021369,2]
[375282892,1753615872472,-460.0,0.00021369,2]
[375282893,1753615872481,-460.0,0.00021369,2]
[375282894,1753615872491,-198.81205528,0.00021369,2]
[375282895,1753615872500,-3942.302754,0.00021408,2]
[375282896,1753615872509,-2000.0,0.00021416,2]
[375282897,1753615872522,-2000.0,0.00021416,2]
[375282898,1753615872531,-1149.92621861,0.00021416,2]
[375282899,1753615872542,-150.0,0.00021452,2]
[375282900,1753615872552,-150.0,0.00021452,2]
[375282901,1753615872563,-150.0,0.00021452,2]
[375282902,1753615872572,-150.085,0.00021452,2]
[375282903,1753615872582,-4088.1679559,0.00021463,2]
[375282904,1753615872591,-4239.43017027,0.00021518,2]
[375282905,1753615872602,-160.0,0.00021522,3]
[375282906,1753615872613,-155.78,0.00021522,2]
[375282907,1753615872623,-2848.85961,0.00021555,5]
[375282908,1753615872633,-4396.28908657,0.00021573,2]
[375282909,1753615872643,-151.0,0.00021573,2]
[375282910,1753615872652,-151.0,0.00021573,2]
[375282911,1753615872662,-151.0,0.00021573,2]
[375282912,1753615872672,-1158.903073,0.00021573,2]
[375282913,1753615872681,-1158.903073,0.00021573,2]
[375282914,1753615872690,-4558.95178277,0.00021628,2]
[375282915,1753615872699,-2091.35341261,0.00021631,2]
[375282916,1753615872709,-500.0,0.00021632,2]
[375282917,1753615872718,-460.0,0.00021643,2]
[375282918,1753615872728,-1311.09,0.00021643,2]
[375282919,1753615872738,-460.0,0.00021643,2]
[375282920,1753615872747,-460.0,0.00021643,2]
[375282921,1753615872757,-460.0,0.00021643,2]
[375282922,1753615872767,-1237.56,0.00021643,2]
[375282923,1753615872776,-460.0,0.00021643,2]
[375282924,1753615872786,-460.0,0.00021643,2]
[375282925,1753615872796,-1780.04,0.00021643,2]
[375282926,1753615872805,-460.0,0.00021643,2]
[375282927,1753615872814,-460.0,0.00021643,2]
[375282928,1753615872824,-189.733509,0.00021643,2]
[375282929,1753615872833,-151.0,0.00021643,2]
[375282930,1753615872842,-460.0,0.00021643,2]
[375282931,1753615872853,-460.0,0.00021643,2]
[375282932,1753615872863,-460.0,0.00021643,2]
[375282933,1753615872873,-460.0,0.00021643,2]
[375282934,1753615872882,-460.0,0.00021643,2]
[375282935,1753615872892,-460.0,0.00021643,2]
[375282936,1753615872901,-460.0,0.00021643,2]
[375282937,1753615872911,-460.0,0.00021643,2]
[375282938,1753615872920,-628.25,0.00021643,2]
[375282939,1753615873030,-588.88,0.00021643,2]
[375282940,1753615873042,-460.0,0.00021643,2]
[375282941,1753615873052,-460.0,0.00021643,2]
[375282942,1753615873061,-460.0,0.00021643,2]
[375282943,1753615873071,-482.95,0.00021643,2]
[375282944,1753615873081,-460.0,0.00021643,2]
[375282945,1753615873090,-460.0,0.00021643,2]
[375282946,1753615873101,-460.0,0.00021643,2]
[375282947,1753615873111,-460.0,0.00021643,2]
[375282948,1753615873120,-460.0,0.00021643,2]
[375282949,1753615873130,-460.0,0.00021643,2]
[375282950,1753615873140,-460.0,0.00021643,2]
[375282951,1753615873150,-460.0,0.00021643,2]
[375282952,1753615873159,-460.0,0.00021643,2]
[375282953,1753615873170,-460.0,0.00021643,2]
[375282954,1753615873180,-481.11,0.00021643,2]
[375282955,1753615873189,-460.0,0.00021643,2]
[375282956,1753615873199,-700.52,0.00021643,2]
[375282957,1753615873208,-460.0,0.00021643,2]
[375282958,1753615873219,-522.64,0.00021643,2]
[375282959,1753615873229,-460.0,0.00021643,2]
[375282960,1753615873239,-473.84,0.00021643,2]
[375282961,1753615873249,-460.0,0.00021643,2]
[375282962,1753615873259,-460.0,0.00021643,2]
[375282963,1753615873268,-460.0,0.00021643,2]
[375282964,1753615873278,-460.0,0.00021643,2]
[375282965,1753615873289,-460.0,0.00021643,2]
[375282966,1753615873301,-460.0,0.00021643,2]
[375282967,1753615873311,-460.0,0.00021643,2]
[375282968,1753615873320,-2233.63,0.00021643,2]
[375282969,1753615873330,-460.0,0.00021643,2]
[375282970,1753615873339,-460.0,0.00021643,2]
[375282971,1753615873349,-1630.4,0.00021643,2]
[375282972,1753615873359,-772.54,0.00021643,2]
[375282973,1753615873368,-460.0,0.00021643,2]
[375282974,1753615873379,-565.5,0.00021643,2]
[375282975,1753615873388,-460.0,0.00021643,2]
[375282976,1753615873398,-460.0,0.00021643,2]
[375282977,1753615873407,-460.0,0.00021643,2]
[375282978,1753615873416,-460.0,0.00021643,2]
[375282979,1753615873427,-466.14,0.00021643,2]
[375282980,1753615873436,-554.36,0.00021643,2]
[375282981,1753615873446,-460.0,0.00021643,2]
[375282982,1753615873456,-460.0,0.00021643,2]
[375282983,1753615873466,-939.82,0.00021643,2]
[375282984,1753615873476,-2047.96,0.00021643,2]
[375282985,1753615873486,-1111.37,0.00021643,2]
[375282986,1753615873496,-601.19,0.00021643,2]
[375282987,1753615873505,-1411.8,0.00021643,2]
[375282988,1753615873517,-460.0,0.00021643,2]
[375282989,1753615873531,-460.0,0.00021643,2]
[375282990,1753615873542,-460.0,0.00021643,2]
[375282991,1753615873553,-460.0,0.00021643,2]
[375282992,1753615873562,-358.18197748,0.00021643,2]
[375282993,1753615873571,-734.55,0.00021643,2]
[375282994,1753615873581,-817.55,0.00021643,2]
[375282995,1753615873591,-460.0,0.00021643,2]
[375282996,1753615873600,-1243.43,0.00021643,2]
[375282997,1753615873610,-460.0,0.00021643,2]
[375282998,1753615873620,-460.0,0.00021643,2]
[375282999,1753615873629,-460.0,0.00021643,2]
[375283000,1753615873639,-460.0,0.00021643,2]
[375283001,1753615873648,-471.68642377,0.00021643,2]
[375283002,1753615873658,-460.0,0.00021643,2]
[375283003,1753615873668,-460.0,0.00021643,2]
[375283004,1753615873679,-460.0,0.00021643,2]
[375283005,1753615873688,-460.0,0.00021643,2]
[375283006,1753615873697,-4262.34,0.00021643,2]
[375283007,1753615873707,-3803.86,0.00021643,2]
[375283008,1753615873717,-471.21,0.00021643,2]
[375283009,1753615873727,-492.93,0.00021643,2]
[375283010,1753615873736,-1381.0,0.00021643,2]
[375283011,1753615873747,-1164.21,0.00021643,2]
[375283012,1753615873756,-460.0,0.00021643,2]
[375283013,1753615873766,-460.0,0.00021643,2]
[375283014,1753615873775,-460.0,0.00021643,2]
[375283015,1753615873785,-635.9,0.00021643,2]
[375283016,1753615873795,-1473.58,0.00021643,2]
[375283017,1753615873805,-460.0,0.00021643,2]
[375283018,1753615873815,-460.0,0.00021643,2]
[375283019,1753615873825,-460.0,0.00021643,2]
[375283020,1753615873834,-460.0,0.00021643,2]
[375283021,1753615873844,-460.0,0.00021643,2]
[375283022,1753615873854,-460.0,0.00021643,2]
[375283023,1753615873863,-244.72615572,0.00021664,2]
[375283024,1753615873873,-4727.63299873,0.00021683,2]
[375283025,1753615873882,-4902.55541968,0.00021738,2]
[375283026,1753615873892,-2848.85961,0.00021762,5]
[375283027,1753615873902,-304.37602874,0.00021772,5]
[375283028,1753615873911,-460.0,0.00021774,2]
[375283029,1753615873921,-1158.08855282,0.00021793,2]
[375283030,1753615873931,-25000.0,0.00021901,2]
[375283031,1753615873941,-534.25319276,0.00021906,2]
[375283032,1753615873951,-460.0,0.00021917,2]
[375283033,1753615873961,-1311.09,0.00021917,2]
[375283034,1753615873970,-460.0,0.00021917,2]
[375283035,1753615873980,-460.0,0.00021917,2]
[375283036,1753615873989,-460.0,0.00021917,2]
[375283037,1753615873999,-1237.56,0.00021917,2]
[375283038,1753615874008,-460.0,0.00021917,2]
[375283039,1753615874019,-460.0,0.00021917,2]
[375283040,1753615874028,-1780.04,0.00021917,2]
[375283041,1753615874038,-460.0,0.00021917,2]
[375283042,1753615874048,-460.0,0.00021917,2]
[375283043,1753615874058,-460.0,0.00021917,2]
[375283044,1753615874067,-460.0,0.00021917,2]
[375283045,1753615874076,-460.0,0.00021917,2]
[375283046,1753615874086,-518.61123745,0.00021917,2]
[375283047,1753615874095,-460.0,0.00021917,2]
[375283048,1753615874104,-460.0,0.00021917,2]
[375283049,1753615874113,-460.0,0.00021917,2]
[375283050,1753615874122,-628.25,0.00021917,2]
[375283051,1753615874132,-277.819563,0.00021917,2]
[375283052,1753615874141,-588.88,0.00021917,2]
[375283053,1753615874150,-460.0,0.00021917,2]
[375283054,1753615874159,-460.0,0.00021917,2]
[375283055,1753615874168,-460.0,0.00021917,2]
[375283056,1753615874178,-482.95,0.00021917,2]
[375283057,1753615874188,-460.0,0.00021917,2]
[375283058,1753615874198,-460.0,0.00021917,2]
[375283059,1753615874208,-460.0,0.00021917,2]
[375283060,1753615874218,-460.0,0.00021917,2]
[375283061,1753615874227,-460.0,0.00021917,2]
[375283062,1753615874237,-460.0,0.00021917,2]
[375283063,1753615874246,-460.0,0.00021917,2]
[375283064,1753615874255,-460.0,0.00021917,2]
[375283065,1753615874265,-460.0,0.00021917,2]
[375283066,1753615874274,-460.0,0.00021917,2]
[375283067,1753615874283,-481.11,0.00021917,2]
[375283068,1753615874293,-460.0,0.00021917,2]
[375283069,1753615874303,-700.52,0.00021917,2]
[375283070,1753615874312,-460.0,0.00021917,2]
[375283071,1753615874322,-522.64,0.00021917,2]
[375283072,1753615874331,-460.0,0.00021917,2]
[375283073,1753615874341,-473.84,0.00021917,2]
[375283074,1753615874351,-460.0,0.00021917,2]
[375283075,1753615874362,-460.0,0.00021917,2]
[375283076,1753615874372,-460.0,0.00021917,2]
[375283077,1753615874382,-460.0,0.00021917,2]
[375283078,1753615874392,-460.0,0.00021917,2]
[375283079,1753615874402,-460.0,0.00021917,2]
[375283080,1753615874411,-2233.63,0.00021917,2]
[375283081,1753615874421,-460.0,0.00021917,2]
[375283082,1753615874432,-460.0,0.00021917,2]
[375283083,1753615874442,-1630.4,0.00021917,2]
[375283084,1753615874452,-500.0,0.00021917,2]
[375283085,1753615874462,-500.0,0.00021917,2]
[375283086,1753615874473,-500.0,0.00021917,2]
[375283087,1753615874483,-500.0,0.00021917,2]
[375283088,1753615874493,-500.0,0.00021917,2]
[375283089,1753615874503,-500.0,0.00021917,2]
[375283090,1753615874513,-500.0,0.00021917,2]
[375283091,1753615874528,-359.30961583,0.00021917,2]
[375283092,1753615874538,-176.590682,0.00021917,2]
[375283093,1753615874550,-772.54,0.00021917,2]
[375283094,1753615874563,-460.0,0.00021917,2]
[375283095,1753615874574,-565.5,0.00021917,2]
[375283096,1753615874584,-460.0,0.00021917,2]
[375283097,1753615874594,-460.0,0.00021917,2]
[375283098,1753615874604,-460.0,0.00021917,2]
[375283099,1753615874614,-460.0,0.00021917,2]
[375283100,1753615874623,-466.14,0.00021917,2]
[375283101,1753615874633,-554.36,0.00021917,2]
[375283102,1753615874642,-460.0,0.00021917,2]
[375283103,1753615874652,-460.0,0.00021917,2]
[375283104,1753615874662,-939.82,0.00021917,2]
[375283105,1753615874671,-2047.96,0.00021917,2]
[375283106,1753615874681,-1111.37,0.00021917,2]
[375283107,1753615874691,-601.19,0.00021917,2]
[375283108,1753615874700,-1411.8,0.00021917,2]
[375283109,1753615874710,-249.19275384,0.00021917,2]
[375283110,1753615874719,-460.0,0.00021917,2]
[375283111,1753615874729,-460.0,0.00021917,2]
[375283112,1753615874739,-591.7221682,0.00021917,2]
[375283113,1753615874749,-734.55,0.00021917,2]
[375283114,1753615874759,-817.55,0.00021917,2]
[375283115,1753615874769,-466.48867009,0.00021917,2]
[375283116,1753615874778,-1243.43,0.00021917,2]
[375283117,1753615874788,-460.0,0.00021917,2]
[375283118,1753615874801,-460.0,0.00021917,2]
[375283119,1753615874811,-460.0,0.00021917,2]
[375283120,1753615874821,-460.0,0.00021917,2]
[375283121,1753615874831,-460.0,0.00021917,2]
[375283122,1753615874841,-460.0,0.00021917,2]
[375283123,1753615874851,-460.0,0.00021917,2]
[375283124,1753615874860,-460.0,0.00021917,2]
[375283125,1753615874871,-460.0,0.00021917,2]
[375283126,1753615874881,-4262.34,0.00021917,2]
[375283127,1753615874890,-3803.86,0.00021917,2]
[375283128,1753615874901,-151.0,0.00021917,2]
[375283129,1753615874910,-471.21,0.00021917,2]
[375283130,1753615874920,-492.93,0.00021917,2]
[375283131,1753615874930,-1381.0,0.00021917,2]
[375283132,1753615874940,-1164.21,0.00021917,2]
[375283133,1753615874950,-460.0,0.00021917,2]
[375283134,1753615874960,-460.0,0.00021917,2]
[375283135,1753615874970,-460.0,0.00021917,2]
[375283136,1753615874979,-635.9,0.00021917,2]
[375283137,1753615874989,-1473.58,0.00021917,2]
[375283138,1753615874999,-460.0,0.00021917,2]
[375283139,1753615875009,-460.0,0.00021917,2]
[375283140,1753615875019,-460.0,0.00021917,2]
[375283141,1753615875029,-460.0,0.00021917,2]
[375283142,1753615875039,-460.0,0.00021917,2]
[375283143,1753615875051,-150.0,0.00021918,2]
[375283144,1753615875061,-150.60043876,0.00021918,2]
[375283145,1753615875072,-429.9863832,0.00021945,2]
[375283146,1753615875082,-429.9863832,0.00021945,2]
[375283147,1753615875093,-428.8286288,0.00021945,2]
[375283148,1753615875104,-197.55022164,0.00021964,2]
[375283149,1753615875113,-1500.0,0.00021964,2]
[375283150,1753615875123,-2848.85961,0.00021969,6]
[375283151,1753615875133,-4380.06,0.00022,7]
[375283152,1753615875143,-797.56,0.00022,7]
[375283153,1753615875153,-2512.41,0.00022,7]
[375283154,1753615875163,-18899.68,0.00022,2]
[375283155,1753615875172,-151.0,0.00022,7]
[375283156,1753615875181,-151.0,0.00022,7]
[375283157,1753615875191,-151.0,0.00022,7]
[375283158,1753615875201,-178.419688,0.00022,7]
[375283159,1753615875211,-178.419688,0.00022,7]
[375283160,1753615875222,-221.65,0.00022,2]
[375283161,1753615875232,-153.0,0.00022,2]
[375283162,1753615875242,-2848.85961,0.00022176,6]
[375283163,1753615875252,-980.5484476,0.00022183,2]
[375283164,1753615875261,-460.0,0.00022191,2]
[375283165,1753615875271,-1311.09,0.00022191,2]
[375283166,1753615875280,-460.0,0.00022191,2]
[375283167,1753615875290,-460.0,0.00022191,2]
[375283168,1753615875301,-1237.56,0.00022191,2]
[375283169,1753615875310,-460.0,0.00022191,2]
[375283170,1753615875320,-460.0,0.00022191,2]
[375283171,1753615875330,-1780.04,0.00022191,2]
[375283172,1753615875339,-460.0,0.00022191,2]
[375283173,1753615875349,-460.0,0.00022191,2]
[375283174,1753615875359,-460.0,0.00022191,2]
[375283175,1753615875368,-460.0,0.00022191,2]
[375283176,1753615875377,-460.0,0.00022191,2]
[375283177,1753615875386,-460.0,0.00022191,2]
[375283178,1753615875396,-628.25,0.00022191,2]
[375283179,1753615875405,-588.88,0.00022191,2]
[375283180,1753615875414,-460.0,0.00022191,2]
[375283181,1753615875424,-460.0,0.00022191,2]
[375283182,1753615875433,-460.0,0.00022191,2]
[375283183,1753615875442,-482.95,0.00022191,2]
[375283184,1753615875451,-460.0,0.00022191,2]
[375283185,1753615875460,-249.22585718,0.00022191,2]
[375283186,1753615875470,-460.0,0.00022191,2]
[375283187,1753615875479,-460.0,0.00022191,2]
[375283188,1753615875488,-460.0,0.00022191,2]
[375283189,1753615875497,-466.74365477,0.00022191,2]
[375283190,1753615875506,-460.0,0.00022191,2]
[375283191,1753615875517,-460.0,0.00022191,2]
[375283192,1753615875528,-151.0,0.00022191,7]
[375283193,1753615875537,-151.0,0.00022191,7]
[375283194,1753615875548,-460.0,0.00022191,2]
[375283195,1753615875559,-481.11,0.00022191,2]
[375283196,1753615875568,-460.0,0.00022191,2]
[375283197,1753615875578,-700.52,0.00022191,2]
[375283198,1753615875587,-1158.903073,0.00022191,7]
[375283199,1753615875596,-460.0,0.00022191,2]
[375283200,1753615875606,-1158.903073,0.00022191,7]
[375283201,1753615875706,-522.64,0.00022191,2]
[375283202,1753615875715,-460.0,0.00022191,2]
[375283203,1753615875725,-473.84,0.00022191,2]
[375283204,1753615875734,-460.0,0.00022191,2]
[375283205,1753615875743,-460.0,0.00022191,2]
[375283206,1753615875753,-460.0,0.00022191,2]
[375283207,1753615875762,-460.0,0.00022191,2]
[375283208,1753615875771,-460.0,0.00022191,2]
[375283209,1753615875781,-460.0,0.00022191,2]
[375283210,1753615875791,-2233.63,0.00022191,2]
[375283211,1753615875801,-460.0,0.00022191,2]
[375283212,1753615875811,-460.0,0.00022191,2]
[375283213,1753615875821,-1630.4,0.00022191,2]
[375283214,1753615875830,-772.54,0.00022191,2]
[375283215,1753615875839,-460.0,0.00022191,2]
[375283216,1753615875848,-565.5,0.00022191,2]
[375283217,1753615875857,-460.0,0.00022191,2]
[375283218,1753615875867,-460.0,0.00022191,2]
[375283219,1753615875875,-460.0,0.00022191,2]
[375283220,1753615875885,-460.0,0.00022191,2]
[375283221,1753615875894,-466.14,0.00022191,2]
[375283222,1753615875904,-554.36,0.00022191,2]
[375283223,1753615875913,-460.0,0.00022191,2]
[375283224,1753615875923,-460.0,0.00022191,2]
[375283225,1753615875932,-939.82,0.00022191,2]
[375283226,1753615875941,-2047.96,0.00022191,2]
[375283227,1753615875951,-1111.37,0.00022191,2]
[375283228,1753615875960,-601.19,0.00022191,2]
[375283229,1753615875969,-1411.8,0.00022191,2]
[375283230,1753615875979,-304.14765728,0.00022191,2]
[375283231,1753615875988,-460.0,0.00022191,2]
[375283232,1753615875998,-734.55,0.00022191,2]
[375283233,1753615876007,-817.55,0.00022191,2]
[375283234,1753615876016,-1243.43,0.00022191,2]
[375283235,1753615876025,-460.0,0.00022191,2]
[375283236,1753615876035,-302.01,0.00022191,2]
[375283237,1753615876046,-460.0,0.00022191,2]
[375283238,1753615876055,-460.0,0.00022191,2]
[375283239,1753615876065,-460.0,0.00022191,2]
[375283240,1753615876074,-356.7184415,0.00022191,2]
[375283241,1753615876083,-4262.34,0.00022191,2]
[375283242,1753615876092,-258.02964396,0.00022191,2]
[375283243,1753615876102,-3803.86,0.00022191,2]
[375283244,1753615876111,-471.21,0.00022191,2]
[375283245,1753615876120,-492.93,0.00022191,2]
[375283246,1753615876130,-1381.0,0.00022191,2]
[375283247,1753615876141,-1164.21,0.00022191,2]
[375283248,1753615876150,-460.0,0.00022191,2]
[375283249,1753615876159,-460.0,0.00022191,2]
[375283250,1753615876168,-558.29635366,0.00022191,2]
[375283251,1753615876177,-635.9,0.00022191,2]
[375283252,1753615876187,-1473.58,0.00022191,2]
[375283253,1753615876197,-460.0,0.00022191,2]
[375283254,1753615876207,-460.0,0.00022191,2]
[375283255,1753615876217,-523.18822385,0.00022191,2]
[375283256,1753615876226,-460.0,0.00022191,2]
[375283257,1753615876235,-460.0,0.00022191,2]
[375283258,1753615876245,-12632.25855046,0.000222,7]
[375283259,1753615876254,-2091.35341261,0.00022223,2]
[375283260,1753615876263,-500.0,0.0002226,2]
[375283261,1753615876273,-560.0,0.00022322,2]
[375283262,1753615876282,-250.0,0.00022328,2]
[375283263,1753615876292,-2848.85961,0.00022383,7]
[375283264,1753615876302,-787.72,0.000224,2]
[375283265,1753615876312,-25000.0,0.00022449,2]
[375283266,1753615876321,-207.7,0.00022458,2]
[375283267,1753615876331,-151.0,0.00022465,7]
[375283268,1753615876340,-460.0,0.00022465,2]
[375283269,1753615876350,-1311.09,0.00022465,2]
[375283270,1753615876360,-460.0,0.00022465,2]
[375283271,1753615876371,-460.0,0.00022465,2]
[375283272,1753615876382,-1237.56,0.00022465,2]
[375283273,1753615876393,-460.0,0.00022465,2]
[375283274,1753615876405,-460.0,0.00022465,2]
[375283275,1753615876417,-1780.04,0.00022465,2]
[375283276,1753615876430,-460.0,0.00022465,2]
[375283277,1753615876441,-460.0,0.00022465,2]
[375283278,1753615876453,-151.0,0.00022465,7]
[375283279,1753615876464,-460.0,0.00022465,2]
[375283280,1753615876475,-460.0,0.00022465,2]
[375283281,1753615876487,-460.0,0.00022465,2]
[375283282,1753615876498,-300.59397074,0.00022465,2]
[375283283,1753615876508,-628.25,0.00022465,2]
[375283284,1753615876526,-588.88,0.00022465,2]
[375283285,1753615876539,-460.0,0.00022465,2]
[375283286,1753615876559,-460.0,0.00022465,2]
[375283287,1753615876572,-460.0,0.00022465,2]
[375283288,1753615876585,-482.95,0.00022465,2]
[375283289,1753615876603,-460.0,0.00022465,2]
[375283290,1753615876615,-460.0,0.00022465,2]
[375283291,1753615876631,-460.0,0.00022465,2]
[375283292,1753615876645,-460.0,0.00022465,2]
[375283293,1753615876658,-313.86264947,0.00022465,2]
[375283294,1753615876670,-460.0,0.00022465,2]
[375283295,1753615876682,-460.0,0.00022465,2]
[375283296,1753615876694,-481.11,0.00022465,2]
[375283297,1753615876708,-460.0,0.00022465,2]
[375283298,1753615876720,-700.52,0.00022465,2]
[375283299,1753615876737,-460.0,0.00022465,2]
[375283300,1753615876749,-522.64,0.00022465,2]
[375283301,1753615876761,-460.0,0.00022465,2]
[375283302,1753615876774,-473.84,0.00022465,2]
[375283303,1753615876786,-460.0,0.00022465,2]
[375283304,1753615876807,-460.0,0.00022465,2]
[375283305,1753615876818,-1756.67,0.00022465,2]
[375283306,1753615876830,-460.0,0.00022465,2]
[375283307,1753615876842,-460.0,0.00022465,2]
[375283308,1753615876854,-2233.63,0.00022465,2]
[375283309,1753615876865,-460.0,0.00022465,2]
[375283310,1753615876878,-460.0,0.00022465,2]
[375283311,1753615876890,-1630.4,0.00022465,2]
[375283312,1753615876902,-772.54,0.00022465,2]
[375283313,1753615876913,-460.0,0.00022465,2]
[375283314,1753615876925,-565.5,0.00022465,2]
[375283315,1753615876938,-460.0,0.00022465,2]
[375283316,1753615876949,-460.0,0.00022465,2]
[375283317,1753615876961,-460.0,0.00022465,2]
[375283318,1753615876972,-460.0,0.00022465,2]
[375283319,1753615876984,-466.14,0.00022465,2]
[375283320,1753615876995,-554.36,0.00022465,2]
[375283321,1753615877008,-494.63432746,0.00022465,2]
[375283322,1753615877020,-939.82,0.00022465,2]
[375283323,1753615877032,-2047.96,0.00022465,2]
[375283324,1753615877045,-1111.37,0.00022465,2]
[375283325,1753615877064,-601.19,0.00022465,2]
[375283326,1753615877076,-1411.8,0.00022465,2]
[375283327,1753615877087,-159.71401029,0.00022465,2]
[375283328,1753615877100,-734.55,0.00022465,2]
[375283329,1753615877112,-817.55,0.00022465,2]
[375283330,1753615877124,-460.0,0.00022465,2]
[375283331,1753615877136,-1243.43,0.00022465,2]
[375283332,1753615877148,-460.0,0.00022465,2]
[375283333,1753615877159,-460.0,0.00022465,2]
[375283334,1753615877171,-460.0,0.00022465,2]
[375283335,1753615877183,-4262.34,0.00022465,2]
[375283336,1753615877195,-3803.86,0.00022465,2]
[375283337,1753615877207,-471.21,0.00022465,2]